bitfinex-derivatives/quotes_BNBF0:USTF0_20250507
["timestamp","ask_amount","ask_price","bid_price","bid_amount"]
[1746615881749,1.00412833,604.84,603.9,0.33118065]
[1746615882052,1.00412833,604.83,603.9,0.33118065]
[1746615882553,1.00412833,604.82,603.9,0.33118065]
[1746615882945,1.00412833,604.81,603.9,0.33118065]
[1746615883451,1.00412833,604.8,603.9,0.33118065]
[1746615884144,1.00412833,604.79,603.9,0.33118065]
[1746615884751,1.00412833,604.78,603.9,0.33118065]
[1746615885053,1.00412833,604.77,603.9,0.33118065]
[1746615885650,1.00412833,604.76,603.9,0.33118065]
[1746615886051,1.00412833,604.75,603.9,0.33118065]
[1746615886553,1.00412833,604.74,603.9,0.33118065]
[1746615886945,1.00412833,604.73,603.9,0.33118065]
[1746615887552,1.00412833,604.72,603.9,0.33118065]
[1746615888049,1.00412833,604.71,603.9,0.33118065]
[1746615888352,1.00412833,604.7,603.9,0.33118065]
[1746615888852,1.00412833,604.69,603.9,0.33118065]
[1746615889851,1.00412833,604.68,603.9,0.33118065]
[1746615890352,1.00412833,604.67,603.9,0.33118065]
[1746615890852,1.00412833,604.66,603.9,0.33118065]
[1746615891352,1.00412833,604.65,603.9,0.33118065]
[1746615891853,1.00412833,604.64,603.9,0.33118065]
[1746615892152,1.00412833,604.63,603.9,0.33118065]
[1746615892352,1.00412833,604.62,603.9,0.33118065]
[1746615893149,1.00412833,604.61,603.9,0.33118065]
[1746615893647,1.00412833,604.6,603.9,0.33118065]
[1746615894155,1.00412833,604.59,603.9,0.33118065]
[1746615894450,1.00412833,604.58,603.9,0.33118065]
[1746615895055,1.00412833,604.57,603.9,0.33118065]
[1746615895250,1.00412833,604.56,603.9,0.33118065]
[1746615895854,1.00412833,604.55,603.9,0.33118065]
[1746615896357,1.00412833,604.54,603.9,0.33118065]
[1746615896555,1.00438815,604.53,603.9,0.33118065]
[1746615896958,0.28785905,605.21,603.9,0.33118065]
[1746615896959,1.00438815,604.52,603.9,0.33118065]
[1746615897751,1.00438815,604.51,603.9,0.33118065]
[1746615898159,0.33033281,605.45,603.9,0.33118065]
[1746615898658,0.28786857,605.2,603.9,0.33118065]
[1746615898860,1.00456519,605.44,603.9,0.33118065]
[1746615899258,0.30387116,605.43,603.9,0.33118065]
[1746615899456,1.30843635,605.43,603.9,0.33118065]
[1746615899657,1.00456519,605.42,603.9,0.33118065]
[1746615899952,1.30843635,605.42,603.9,0.33118065]
[1746615900156,1.59619662,605.41,603.9,0.33118065]
[1746615900353,0.30387116,605.4,603.9,0.33118065]
[1746615900754,1.00456519,605.39,603.9,0.33118065]
[1746615901059,1.00456519,605.38,603.9,0.33118065]
[1746615901459,0.30387357,605.37,603.9,0.33118065]
[1746615901860,1.00456519,605.36,603.9,0.33118065]
[1746615902155,0.30387357,605.35,603.9,0.33118065]
[1746615902358,1.00456519,605.34,603.9,0.33118065]
[1746615902953,1.00456519,605.33,603.9,0.33118065]
[1746615903263,1.00456519,605.32,603.9,0.33118065]
[1746615904160,1.00456519,605.31,603.9,0.33118065]
[1746615904557,1.00456519,605.3,603.9,0.33118065]
[1746615904757,1.00456519,605.3,603.9,1.14218065]
[1746615905262,1.00533774,605.29,603.9,1.92118065]
[1746615905964,1.00533774,605.28,603.9,1.92118065]
[1746615906766,1.00533774,605.27,603.9,1.92118065]
[1746615906962,0.28776027,605.41,603.9,1.92118065]
[1746615906963,1.00533774,605.26,603.9,1.92118065]
[1746615908066,1.00533774,605.25,603.9,1.92118065]
[1746615908568,1.00533774,605.24,603.9,1.92118065]
[1746615909467,1.00533774,605.23,603.9,1.92118065]
[1746615909868,1.00533774,605.22,603.9,1.92118065]
[1746615910466,1.29314441,605.21,603.9,1.92118065]
[1746615911367,1.00533774,605.2,603.9,1.92118065]
[1746615911866,1.00533774,605.19,603.9,1.92118065]
[1746615912369,1.00533774,605.18,603.9,1.92118065]
[1746615912763,1.00533774,605.17,603.9,1.92118065]
[1746615913269,1.00533774,605.16,603.9,1.92118065]
[1746615913463,1.29317417,605.16,603.9,1.92118065]
[1746615913663,1.00533774,605.15,603.9,1.92118065]
[1746615914064,1.00533774,605.14,603.9,1.92118065]
[1746615914569,1.00533774,605.13,603.9,1.92118065]
[1746615915169,1.00533774,605.12,603.9,1.92118065]
[1746615915767,1.00533774,605.11,603.9,1.92118065]
[1746615916363,0.2878531,605.1,603.9,1.92118065]
[1746615916565,1.29319084,605.1,603.9,1.92118065]
[1746615917169,1.00533774,605.09,603.9,1.92118065]
[1746615918371,1.00533774,605.08,603.9,1.92118065]
[1746615918869,1.00533774,605.07,603.9,1.92118065]
[1746615919378,1.00533774,605.06,603.9,1.92118065]
[1746615919573,1.2931956,605.06,603.9,1.92118065]
[1746615919871,1.00533774,605.05,603.9,1.92118065]
[1746615920273,1.00533774,605.04,603.9,1.92118065]
[1746615920874,1.00533774,605.03,603.9,1.92118065]
[1746615921474,1.00533774,605.02,603.9,1.92118065]
[1746615921775,1.00533774,605.01,603.9,1.92118065]
[1746615922674,1.29320274,605.0,603.9,1.92118065]
[1746615922970,1.00533774,604.99,603.9,1.92118065]
[1746615923569,1.00533774,604.98,603.9,1.92118065]
[1746615923974,1.00533774,604.97,603.9,1.92118065]
[1746615924376,1.00533774,604.96,603.9,1.92118065]
[1746615924673,0.30400353,604.95,603.9,1.92118065]
[1746615924968,1.00533774,604.94,603.9,1.92118065]
[1746615925475,1.00533774,604.93,603.9,1.92118065]
[1746615925673,1.00533774,604.93,603.9,3.18218065]
[1746615926474,1.00533774,604.92,603.9,3.18218065]
[1746615926976,1.00533774,604.91,603.9,3.18218065]
[1746615927671,1.00533774,604.9,603.9,3.18218065]
[1746615928377,1.00533774,604.89,603.9,3.18218065]
[1746615928579,1.00533774,604.88,603.9,3.18218065]
[1746615928877,1.00533774,604.87,603.9,3.18218065]
[1746615931374,1.00533774,604.86,603.9,3.18218065]
[1746615932080,1.00533774,604.85,603.9,3.18218065]
[1746615932476,1.00533774,604.84,603.9,3.18218065]
[1746615933180,1.00533774,604.83,603.9,3.18218065]
[1746615933786,1.00533774,604.82,603.9,3.18218065]
[1746615934385,1.00533774,604.81,603.9,3.18218065]
[1746615935088,1.00533774,604.8,603.9,3.18218065]
[1746615935288,1.00533774,604.79,603.9,3.18218065]
[1746615935489,1.00533774,604.78,603.9,3.18218065]
[1746615935885,1.00533774,604.77,603.9,3.18218065]
[1746615936190,1.00533774,604.76,603.9,3.18218065]
[1746615936690,1.00533774,604.75,603.9,3.18218065]
[1746615937494,1.00533774,604.74,603.9,3.18218065]
[1746615937690,1.00533774,604.73,603.9,3.18218065]
[1746615938190,1.00533774,604.72,603.9,3.18218065]
[1746615938390,1.00533774,604.71,603.9,3.18218065]
[1746615938695,1.00533774,604.7,603.9,3.18218065]
[1746615939798,1.00533774,604.69,603.9,3.18218065]
[1746615940094,1.00533774,604.68,603.9,3.18218065]
[1746615940702,1.00533774,604.67,603.9,3.18218065]
[1746615941000,1.00533774,604.66,603.9,3.18218065]
[1746615941300,1.00533774,604.65,603.9,3.18218065]
[1746615942196,1.00533774,604.64,603.9,3.18218065]
[1746615942801,1.00533774,604.63,603.9,3.18218065]
[1746615943101,1.00533774,604.62,603.9,3.18218065]
[1746615943805,1.00533774,604.61,603.9,3.18218065]
[1746615944200,1.00533774,604.6,603.9,3.18218065]
[1746615944802,1.00533774,604.59,603.9,3.18218065]
[1746615945402,1.00533774,604.58,603.9,3.18218065]
[1746615945903,1.00533774,604.57,603.9,3.18218065]
[1746615946299,1.00533774,604.56,603.9,3.18218065]
[1746615946497,1.00533774,604.55,603.9,3.18218065]
[1746615946898,1.00533774,604.54,603.9,3.18218065]
[1746615947903,1.00533774,604.53,603.9,3.18218065]
[1746615948505,1.00533774,604.52,603.9,3.18218065]
[1746615948805,1.00533774,604.51,603.9,3.18218065]
[1746615949699,1.00533774,604.5,603.9,3.18218065]
[1746615950305,1.00533774,604.49,603.9,3.18218065]
[1746615951101,0.28792454,604.96,603.9,3.18218065]
[1746615951705,1.00083794,604.95,603.9,3.18218065]
[1746615952101,1.00083794,604.94,603.9,3.18218065]
[1746615952306,1.00083794,604.93,603.9,3.18218065]
[1746615952905,1.00083794,604.92,603.9,3.18218065]
[1746615953205,1.00083794,604.91,603.9,3.18218065]
[1746615953909,1.00083794,604.9,603.9,3.18218065]
[1746615954604,1.00083794,604.89,603.9,3.18218065]
[1746615955510,1.00083794,604.88,603.9,3.18218065]
[1746615955810,1.00083794,604.87,603.9,3.18218065]
[1746615956810,1.00083794,604.86,603.9,3.18218065]
[1746615957311,1.00083794,604.85,603.9,3.18218065]
[1746615958010,1.00083794,604.84,603.9,3.18218065]
[1746615958407,1.00083794,604.83,603.9,3.18218065]
[1746615958809,1.00083794,604.82,603.9,3.18218065]
[1746615959211,1.00083794,604.81,603.9,3.18218065]
[1746615959909,1.00083794,604.8,603.9,3.18218065]
[1746615960314,1.00083794,604.79,603.9,3.18218065]
[1746615960816,1.00083794,604.78,603.9,3.18218065]
[1746615961314,1.00083794,604.77,603.9,3.18218065]
[1746615961911,1.00083794,604.76,603.9,3.18218065]
[1746615962314,1.00083794,604.75,603.9,3.18218065]
[1746615962718,1.00083794,604.74,603.9,3.18218065]
[1746615962918,1.00083794,604.73,603.9,3.18218065]
[1746615963222,1.00083794,604.72,603.9,3.18218065]
[1746615963619,1.00083794,604.71,603.9,3.18218065]
[1746615964118,1.00083794,604.7,603.9,3.18218065]
[1746615964418,1.00083794,604.69,603.9,3.18218065]
[1746615965121,1.00083794,604.68,603.9,3.18218065]
[1746615965720,1.00083794,604.67,603.9,3.18218065]
[1746615966220,1.00083794,604.66,603.9,3.18218065]
[1746615967017,1.00083794,604.65,603.9,3.18218065]
[1746615967422,1.00083794,604.64,603.9,3.18218065]
[1746615968122,1.00083794,604.63,603.9,3.18218065]
[1746615968920,1.00083794,604.62,603.9,3.18218065]
[1746615969425,1.00083794,604.61,603.9,3.18218065]
[1746615969626,1.00083794,604.6,603.9,3.18218065]
[1746615970122,1.00083794,604.59,603.9,3.18218065]
[1746615970722,1.00083794,604.58,603.9,3.18218065]
[1746615971124,1.00083794,604.57,603.9,3.18218065]
[1746615972128,1.00083794,604.56,603.9,3.18218065]
[1746615972529,0.28786143,605.18,603.9,3.18218065]
[1746615972728,1.00134236,605.17,603.9,3.18218065]
[1746615972928,1.30524312,605.17,603.9,3.18218065]
[1746615973125,0.30390076,605.16,603.9,3.18218065]
[1746615973429,1.30524312,605.16,603.9,3.18218065]
[1746615973828,1.00134236,605.15,603.9,3.18218065]
[1746615974429,1.00134236,605.14,603.9,3.18218065]
[1746615974828,1.00134236,605.13,603.9,3.18218065]
[1746615975425,1.00134236,605.12,603.9,3.18218065]
[1746615976130,1.00134236,605.11,603.9,3.18218065]
[1746615976529,1.00134236,605.1,603.9,3.18218065]
[1746615976828,1.00134236,605.09,603.9,3.18218065]
[1746615977226,1.00134236,605.08,603.9,3.18218065]
[1746615978132,1.00134236,605.07,603.9,3.18218065]
[1746615978830,1.00134236,605.06,603.9,3.18218065]
[1746615979329,1.00134236,605.05,603.9,3.18218065]
[1746615980132,1.00134236,605.04,603.9,3.18218065]
[1746615980531,1.00134236,605.03,603.9,3.18218065]
[1746615981237,1.00134236,605.02,603.9,3.18218065]
[1746615981634,1.00134236,605.01,603.9,3.18218065]
[1746615982035,1.00134236,605.0,603.9,3.18218065]
[1746615982636,1.00134236,604.99,603.9,3.18218065]
[1746615983436,1.00134236,604.98,603.9,3.18218065]
[1746615983739,1.00134236,604.97,603.9,3.18218065]
[1746615984340,1.00134236,604.96,603.9,3.18218065]
[1746615985043,1.00134236,604.95,603.9,3.18218065]
[1746615985439,1.00134236,604.94,603.9,3.18218065]
[1746615986442,1.00134236,604.93,603.9,3.18218065]
[1746615986839,1.00134236,604.92,603.9,3.18218065]
[1746615987040,1.00134236,604.91,603.9,3.18218065]
[1746615987443,1.00134236,604.9,603.9,3.18218065]
[1746615988245,1.00134236,604.89,603.9,3.18218065]
[1746615988947,1.00134236,604.88,603.9,3.18218065]
[1746615989446,1.00134236,604.87,603.9,3.18218065]
[1746615989848,1.00134236,604.86,603.9,3.18218065]
[1746615990347,1.00134236,604.85,603.9,3.18218065]
[1746615992547,1.00134236,604.84,603.9,3.18218065]
[1746615993650,1.00134236,604.83,603.9,3.18218065]
[1746615994049,1.00134236,604.82,603.9,3.18218065]
[1746615994348,1.00134236,604.81,603.9,3.18218065]
[1746615994947,1.00134236,604.8,603.9,3.18218065]
[1746615995849,1.00134236,604.79,603.9,3.18218065]
[1746615996246,1.00134236,604.78,603.9,3.18218065]
[1746615996851,1.00134236,604.77,603.9,3.18218065]
[1746615997545,1.00134236,604.76,603.9,3.18218065]
[1746615998244,1.00134236,604.75,603.9,3.18218065]
[1746615998450,1.00134236,604.74,603.9,3.18218065]
[1746615999050,1.00134236,604.73,603.9,3.18218065]
[1746615999447,1.00134236,604.72,603.9,3.18218065]
[1746616000450,1.00134236,604.71,603.9,3.18218065]
[1746616000851,1.00134236,604.7,603.9,3.18218065]
[1746616001252,1.00134236,604.69,603.9,3.18218065]
[1746616001954,1.00134236,604.68,603.9,3.18218065]
[1746616002550,1.00134236,604.67,603.9,3.18218065]
[1746616003354,1.00134236,604.66,603.9,3.18218065]
[1746616003857,1.00134236,604.65,603.9,3.18218065]
[1746616004356,1.00134236,604.64,603.9,3.18218065]
[1746616004855,1.00134236,604.63,603.9,3.18218065]
[1746616005655,1.00134236,604.62,603.9,3.18218065]
[1746616006659,1.00134236,604.61,603.9,3.18218065]
[1746616007159,1.00134236,604.6,603.9,3.18218065]
[1746616007360,1.00134236,604.59,603.9,3.18218065]
[1746616007659,1.00134236,604.58,603.9,3.18218065]
[1746616008453,1.00134236,604.57,603.9,3.18218065]
[1746616008656,1.00134236,604.56,603.9,3.18218065]
[1746616009058,1.00134236,604.55,603.9,3.18218065]
[1746616009558,1.00134236,604.54,603.9,3.18218065]
[1746616010263,1.00134236,604.53,603.9,3.18218065]
[1746616010563,1.00134236,604.52,603.9,3.18218065]
[1746616011064,1.00134236,604.51,603.9,3.18218065]
[1746616011260,1.00134236,604.5,603.9,3.18218065]
[1746616012361,1.00134236,604.49,603.9,3.18218065]
[1746616012865,1.00134236,604.48,603.9,3.18218065]
[1746616013165,1.00134236,604.47,603.9,3.18218065]
[1746616013765,1.00134236,604.46,603.9,3.18218065]
[1746616014266,1.00134236,604.45,603.9,3.18218065]
[1746616014770,1.00134236,604.44,603.9,3.18218065]
[1746616014971,1.00134236,604.43,603.9,3.18218065]
[1746616015671,1.00134236,604.42,603.9,3.18218065]
[1746616016172,1.00134236,604.41,603.9,3.18218065]
[1746616016873,1.00134236,604.4,603.9,3.18218065]
[1746616017473,0.28790549,605.09,603.9,3.18218065]
[1746616018172,1.0018691,605.08,603.9,3.18218065]
[1746616018673,1.0018691,605.07,603.9,3.18218065]
[1746616019270,1.0018691,605.06,603.9,3.18218065]
[1746616019774,1.0018691,605.05,603.9,3.18218065]
[1746616020775,1.0018691,605.04,603.9,3.18218065]
[1746616021174,1.0018691,605.03,603.9,3.18218065]
[1746616021574,1.0018691,605.02,603.9,3.18218065]
[1746616022071,1.0018691,605.01,603.9,3.18218065]
[1746616022874,1.0018691,605.0,603.9,3.18218065]
[1746616023270,1.0018691,604.99,603.9,3.18218065]
[1746616023774,1.0018691,604.98,603.9,3.18218065]
[1746616024270,1.0018691,604.97,603.9,3.18218065]
[1746616024475,1.28973529,604.97,603.9,3.18218065]
[1746616024676,1.0018691,604.96,603.9,3.18218065]
[1746616025076,1.0018691,604.95,603.9,3.18218065]
[1746616025776,1.0018691,604.94,603.9,3.18218065]
[1746616026077,1.0018691,604.93,603.9,3.18218065]
[1746616026570,1.0018691,604.92,603.9,3.18218065]
[1746616027072,1.0018691,604.91,603.9,3.18218065]
[1746616027577,1.0018691,604.9,603.9,3.18218065]
[1746616027972,0.28787453,604.97,603.9,3.18218065]
[1746616027973,1.0018691,604.89,603.9,3.18218065]
[1746616028575,1.0018691,604.88,603.9,3.18218065]
[1746616029373,1.0018691,604.87,603.9,3.18218065]
[1746616029676,1.0018691,604.86,603.9,3.18218065]
[1746616030378,1.0018691,604.85,603.9,3.18218065]
[1746616030883,1.0018691,604.84,603.9,3.18218065]
[1746616031281,1.0018691,604.83,603.9,3.18218065]
[1746616031773,1.0018691,604.82,603.9,3.18218065]
[1746616031978,1.0018691,604.81,603.9,3.18218065]
[1746616032679,1.0018691,604.8,603.9,3.18218065]
[1746616032879,0.287865,605.06,603.9,3.18218065]
[1746616032880,1.0018691,604.79,603.9,3.18218065]
[1746616033377,1.0018691,604.78,603.9,3.18218065]
[1746616034075,1.0018691,604.77,603.9,3.18218065]
[1746616034779,1.0018691,604.76,603.9,3.18218065]
[1746616035480,1.0018691,604.75,603.9,3.18218065]
[1746616035980,1.0018691,604.74,603.9,3.18218065]
[1746616036376,1.0018691,604.73,603.9,3.18218065]
[1746616036782,1.0018691,604.72,603.9,3.18218065]
[1746616037582,1.0018691,604.71,603.9,3.18218065]
[1746616038182,1.0018691,604.7,603.9,3.18218065]
[1746616038486,1.0018691,604.69,603.9,3.18218065]
[1746616039085,1.0018691,604.68,603.9,3.18218065]
[1746616039786,1.0018691,604.67,603.9,3.18218065]
[1746616040187,1.0018691,604.66,603.9,3.18218065]
[1746616040588,1.0018691,604.65,603.9,3.18218065]
[1746616041088,1.0018691,604.64,603.9,3.18218065]
[1746616041988,1.0018691,604.63,603.9,3.18218065]
[1746616042390,0.99889261,604.62,603.9,3.18218065]
[1746616042890,0.99889261,604.61,603.9,3.18218065]
[1746616043593,0.99889261,604.6,603.9,3.18218065]
[1746616044191,0.99889261,604.59,603.9,3.18218065]
[1746616044695,0.99889261,604.58,603.9,3.18218065]
[1746616045496,0.99889261,604.57,603.9,3.18218065]
[1746616045899,0.99889261,604.56,603.9,3.18218065]
[1746616046296,0.99889261,604.55,603.9,3.18218065]
[1746616047000,0.99889261,604.54,603.9,3.18218065]
[1746616047599,0.99889261,604.53,603.9,3.18218065]
[1746616048000,0.99889261,604.52,603.9,3.18218065]
[1746616048501,0.99889261,604.51,603.9,3.18218065]
[1746616048897,0.2879305,604.93,603.9,3.18218065]
[1746616048898,0.99889261,604.5,603.9,3.18218065]
[1746616049302,0.99889261,604.49,603.9,3.18218065]
[1746616050002,0.99889261,604.48,603.9,3.18218065]
[1746616050302,0.99889261,604.47,603.9,3.18218065]
[1746616050698,0.99889261,604.46,603.9,3.18218065]
[1746616051104,0.99889261,604.45,603.9,3.18218065]
[1746616052105,0.99889261,604.44,603.9,3.18218065]
[1746616055006,0.99889261,604.43,603.9,3.18218065]
[1746616055807,0.99889261,604.42,603.9,3.18218065]
[1746616056202,0.99889261,604.41,603.9,3.18218065]
[1746616056706,0.99889261,604.4,603.9,3.18218065]
[1746616057103,0.99889261,604.39,603.9,3.18218065]
[1746616057505,0.99889261,604.38,603.9,3.18218065]
[1746616058306,0.99889261,604.37,603.9,3.18218065]
[1746616058506,0.99889261,604.36,603.9,3.18218065]
[1746616058906,0.99889261,604.35,603.9,3.18218065]
[1746616059308,0.99889261,604.34,603.9,3.18218065]
[1746616059706,0.99889261,604.33,603.9,3.18218065]
[1746616060208,0.99889261,604.32,603.9,3.18218065]
[1746616060706,0.99889261,604.31,603.9,3.18218065]
[1746616061307,0.99889261,604.3,603.9,3.18218065]
[1746616061709,0.99889261,604.29,603.9,3.18218065]
[1746616062008,0.99889261,604.28,603.9,0.33118065]
[1746616062509,0.99889261,604.27,603.9,0.33118065]
[1746616062809,0.28796624,604.91,603.9,0.33118065]
[1746616063211,0.30407185,604.9,603.9,0.33118065]
[1746616063511,0.99719827,604.9,603.9,0.33118065]
[1746616063712,0.30407185,604.89,603.9,0.33118065]
[1746616064011,0.99719827,604.88,603.9,0.33118065]
[1746616064610,0.30407487,604.87,603.9,1.98518065]
[1746616064812,0.99719827,604.86,603.9,1.98518065]
[1746616065310,0.99719827,604.85,603.9,1.98518065]
[1746616065511,1.30127314,604.85,603.9,1.98518065]
[1746616065708,0.30407487,604.84,603.9,2.65918065]
[1746616066111,0.99719827,604.83,603.9,2.65918065]
[1746616066613,1.30127314,604.82,603.9,2.65918065]
[1746616066910,0.30407487,604.81,603.9,2.65918065]
[1746616067110,1.30127314,604.81,603.9,2.65918065]
[1746616067310,0.99719827,604.81,603.9,2.65918065]
[1746616067513,0.99719827,604.8,603.9,2.65918065]
[1746616068106,0.99719827,604.79,603.9,2.65918065]
[1746616068809,0.99719827,604.78,603.9,2.65918065]
[1746616069108,0.99719827,604.77,603.9,2.65918065]
[1746616069713,0.99719827,604.76,603.9,2.65918065]
[1746616070116,0.99719827,604.75,603.9,2.65918065]
[1746616070608,0.99719827,604.74,603.9,2.65918065]
[1746616071113,0.99719827,604.73,603.9,2.65918065]
[1746616071515,0.99719827,604.72,603.9,2.65918065]
[1746616072514,0.99719827,604.71,603.9,2.65918065]
[1746616072715,0.99719827,604.7,603.9,2.65918065]
[1746616073109,0.99719827,604.69,603.9,2.65918065]
[1746616073716,0.99719827,604.68,603.9,2.65918065]
[1746616074417,0.99719827,604.67,603.9,2.65918065]
[1746616074815,0.99719827,604.66,603.9,2.65918065]
[1746616075217,0.99719827,604.65,603.9,2.65918065]
[1746616075918,0.99719827,604.64,603.9,2.65918065]
[1746616076420,0.99719827,604.63,603.9,2.65918065]
[1746616076920,0.28790906,604.98,603.9,2.65918065]
[1746616076921,0.99719827,604.62,603.9,2.65918065]
[1746616077318,0.99719827,604.61,603.9,2.65918065]
[1746616078122,0.99719827,604.6,603.9,2.65918065]
[1746616078717,0.99719827,604.59,603.9,2.65918065]
[1746616079222,0.99719827,604.58,603.9,2.65918065]
[1746616079524,0.99719827,604.57,603.9,2.65918065]
[1746616079922,0.99719827,604.56,603.9,2.65918065]
[1746616080619,0.99719827,604.55,603.9,2.65918065]
[1746616080818,0.99719827,604.54,603.9,2.65918065]
[1746616081423,0.99719827,604.53,603.9,2.65918065]
[1746616081825,0.99719827,604.52,603.9,2.65918065]
[1746616082324,0.99719827,604.51,603.9,2.65918065]
[1746616082723,0.99719827,604.5,603.9,2.65918065]
[1746616083219,0.99719827,604.49,603.9,2.65918065]
[1746616083616,0.99719827,604.48,603.9,2.65918065]
[1746616084118,0.99719827,604.47,603.9,2.65918065]
[1746616084718,0.99719827,604.46,603.9,2.65918065]
[1746616085123,0.99719827,604.45,603.9,2.65918065]
[1746616085526,0.99719827,604.44,603.9,2.65918065]
[1746616086119,0.99719827,604.43,603.9,2.65918065]
[1746616086423,0.99719827,604.42,603.9,2.65918065]
[1746616086919,0.99719827,604.41,603.9,2.65918065]
[1746616087318,0.99719827,604.4,603.9,2.65918065]
[1746616088025,0.99719827,604.39,603.9,2.65918065]
[1746616088323,0.99719827,604.38,603.9,2.65918065]
[1746616089025,0.99719827,604.37,603.9,2.65918065]
[1746616089620,0.99719827,604.36,603.9,2.65918065]
[1746616089921,0.99719827,604.35,603.9,2.65918065]
[1746616090426,0.2879305,605.02,603.9,2.65918065]
[1746616090821,1.00033373,605.01,603.9,2.65918065]
[1746616091026,1.00033373,605.0,603.9,2.65918065]
[1746616091422,1.00033373,604.99,603.9,2.65918065]
[1746616092028,1.00033373,604.98,603.9,2.65918065]
[1746616092422,1.00033373,604.97,603.9,2.65918065]
[1746616092822,1.00033373,604.96,603.9,2.65918065]
[1746616093022,1.00033373,604.95,603.9,2.65918065]
[1746616093328,1.00033373,604.94,603.9,2.65918065]
[1746616093824,1.00033373,604.93,603.9,2.65918065]
[1746616094123,1.00033373,604.92,603.9,2.65918065]
[1746616094721,1.00033373,604.91,603.9,2.65918065]
[1746616095128,1.00033373,604.9,603.9,2.65918065]
[1746616095728,1.00033373,604.89,603.9,2.65918065]
[1746616096430,1.00033373,604.88,603.9,2.65918065]
[1746616096925,1.00033373,604.87,603.9,2.65918065]
[1746616097330,1.00033373,604.86,603.9,2.65918065]
[1746616097925,1.00033373,604.85,603.9,2.65918065]
[1746616098431,1.00033373,604.84,603.9,2.65918065]
[1746616099132,1.00033373,604.83,603.9,2.65918065]
[1746616099527,1.00033373,604.82,603.9,2.65918065]
[1746616100026,1.00033373,604.81,603.9,2.65918065]
[1746616100428,1.00033373,604.8,603.9,2.65918065]
[1746616101231,0.28778763,605.43,603.9,2.65918065]
[1746616101830,1.00033373,605.42,603.9,2.65918065]
[1746616102433,1.00033373,605.41,603.9,2.65918065]
[1746616102935,1.00033373,605.4,603.9,2.65918065]
[1746616103330,1.00033373,605.39,603.9,2.65918065]
[1746616103736,1.00033373,605.38,603.9,2.65918065]
[1746616104138,1.00033373,605.37,603.9,2.65918065]
[1746616104638,1.00033373,605.36,603.9,2.65918065]
[1746616105536,1.00033373,605.35,603.9,2.65918065]
[1746616106038,1.00033373,605.34,603.9,2.65918065]
[1746616106538,1.00033373,605.33,603.9,2.65918065]
[1746616106941,1.00033373,605.32,603.9,2.65918065]
[1746616107440,1.00033373,605.31,603.9,2.65918065]
[1746616108135,1.00033373,605.3,603.9,2.65918065]
[1746616108641,1.00033373,605.29,603.9,2.65918065]
[1746616108940,1.00033373,605.28,603.9,2.65918065]
[1746616109640,1.00033373,605.27,603.9,2.65918065]
[1746616110041,1.00033373,605.26,603.9,2.65918065]
[1746616110745,1.00033373,605.25,603.9,2.65918065]
[1746616111541,1.00033373,605.24,603.9,2.65918065]
[1746616112244,1.00033373,605.23,603.9,2.65918065]
[1746616112744,1.00033373,605.22,603.9,2.65918065]
[1746616113142,1.00033373,605.21,603.9,2.65918065]
[1746616113446,1.00033373,605.2,603.9,2.65918065]
[1746616113745,1.00033373,605.19,603.9,2.65918065]
[1746616117045,1.00033373,605.18,603.9,2.65918065]
[1746616117640,1.00033373,605.17,603.9,2.65918065]
[1746616118544,1.00033373,605.16,603.9,2.65918065]
[1746616119244,1.00033373,605.15,603.9,2.65918065]
[1746616119745,1.00033373,605.14,603.9,2.65918065]
[1746616120040,1.00033373,605.13,603.9,2.65918065]
[1746616120439,1.00033373,605.12,603.9,2.65918065]
[1746616121346,1.00033373,605.11,603.9,2.65918065]
[1746616121942,1.00033373,605.1,603.9,2.65918065]
[1746616122347,1.00033373,605.09,603.9,2.65918065]
[1746616122947,1.00033373,605.08,603.9,2.65918065]
[1746616123345,1.00033373,605.07,603.9,2.65918065]
[1746616123846,1.00033373,605.06,603.9,2.65918065]
[1746616124347,1.00033373,605.05,603.9,2.65918065]
[1746616124642,1.00033373,605.49,603.9,2.65918065]
[1746616124949,0.30376471,605.48,603.9,2.65918065]
[1746616125344,1.00033373,605.47,603.9,2.65918065]
[1746616125650,0.30376471,605.46,603.9,2.65918065]
[1746616125850,1.00033373,605.45,603.9,2.65918065]
[1746616126152,1.00033373,605.44,603.9,2.65918065]
[1746616126647,1.30409844,605.43,603.9,2.65918065]
[1746616126847,0.30376471,605.42,603.9,2.65918065]
[1746616127047,1.00033373,605.41,603.9,2.65918065]
[1746616127352,0.30376471,605.42,603.9,2.65918065]
[1746616127353,1.00033373,605.4,603.9,2.65918065]
[1746616127553,1.30409844,605.4,603.9,2.65918065]
[1746616127748,1.00033373,605.39,603.9,2.65918065]
[1746616128153,1.00033373,605.38,603.9,2.65918065]
[1746616128354,1.00033373,605.37,603.9,2.65918065]
[1746616128549,1.00033373,605.36,603.9,2.65918065]
[1746616128853,1.00033373,605.35,603.9,2.65918065]
[1746616129450,1.00033373,605.34,603.9,2.65918065]
[1746616129949,1.00033373,605.33,603.9,2.65918065]
[1746616130655,1.00033373,605.32,603.9,2.65918065]
[1746616131050,1.00033373,605.31,603.9,2.65918065]
[1746616131951,1.00033373,605.3,603.9,2.65918065]
[1746616132551,1.00033373,605.29,603.9,2.65918065]
[1746616133056,1.00033373,605.28,603.9,2.65918065]
[1746616133551,1.00033373,605.27,603.9,2.65918065]
[1746616134256,1.00033373,605.26,603.9,2.65918065]